fUST/lending_fUST_20251105
["ID","MTS","AMOUNT","RATE_DAILY","PERIOD"]
[393218552,1762335554008,680.0,0.000144,2]
[393218553,1762335690249,529.0,0.00032877,120]
[393218554,1762335695141,150.0,0.00021488,30]
[393218555,1762335749383,5000.0,0.000222,9]
[393218556,1762335757455,741.06533478,0.000222,9]
[393218557,1762335773124,5000.0,0.000222,9]
[393218558,1762335776895,150.0,0.00021485,30]
[393218560,1762335835494,-483.87609215,0.00015534,2]
[393218561,1762335837612,-161.74352291,0.00015534,2]
[393218562,1762335840545,-171.48244664,0.00015534,2]
[393218563,1762335842180,-201.30505731,0.00015534,2]
[393218564,1762335845303,-226.53685538,0.00015534,2]
[393218565,1762335848019,-387.74800724,0.00015534,2]
[393218566,1762335849545,-196.28083808,0.00015534,2]
[393218567,1762335853848,-257.43103388,0.00015534,2]
[393218568,1762335855998,-379.0986642,0.00015534,2]
[393218569,1762335859467,-266.67515437,0.00015534,2]
[393218570,1762335862231,-212.724126,0.00015534,2]
[393218571,1762335880396,-157.37654015,0.00015534,2]
[393218572,1762335881912,-236.60456641,0.00015534,2]
[393218573,1762335883548,-450.0,0.00015534,2]
[393218574,1762335910339,-230.59521538,0.00015534,2]
[393218575,1762335910359,-70.21462593,0.00015534,2]
[393218576,1762335911854,-308.83400442,0.00015534,2]
[393218577,1762336016219,150.0,0.00021575,30]
[393218578,1762336026122,-8.69937689,0.00015534,2]
[393218579,1762336026142,-176.77173967,0.00015631,2]
[393218580,1762336026162,-631.69368532,0.00015728,2]
[393218581,1762336026181,-2024.7343959,0.00015729,2]
[393218582,1762336027587,376.0,0.00032876,120]
[393218589,1762336167106,-1352.60491229,0.00015729,2]
[393218661,1762336238296,-51.75136581,0.00015729,2]
[393218663,1762336238306,-1971.01973549,0.00016342,2]
[393218664,1762336238315,-424.39906263,0.000164,2]
[393218665,1762336238325,-300.0,0.00016471,2]
[393218666,1762336238335,-193.76145919,0.00016472,2]
[393218667,1762336238344,-500.0,0.00016472,2]
[393218668,1762336238354,-377.11983327,0.00016472,2]
[393218669,1762336238364,-500.0,0.00016472,2]
[393218670,1762336238374,-500.0,0.00016472,2]
[393218671,1762336238383,-500.0,0.00016472,2]
[393218672,1762336238393,-500.0,0.00016472,2]
[393218673,1762336238402,-500.0,0.00016472,2]
[393218674,1762336238412,-500.0,0.00016472,2]
[393218675,1762336238422,-193.78666341,0.00016472,2]
[393218676,1762336238432,-504.64489535,0.00016473,2]
[393218677,1762336238441,-500.0,0.00016473,2]
[393218678,1762336238451,-501.22002476,0.00016473,2]
[393218679,1762336238460,-459.76745475,0.00016473,2]
[393218769,1762336240584,-3e-08,0.00016473,2]
[393218938,1762336246767,-139.28502892,0.00016473,2]
[393218939,1762336246777,-424.50618508,0.00016473,2]
[393218940,1762336247107,-75.49381492,0.00016473,2]
[393218941,1762336247117,-240.27276261,0.00016473,2]
[393218950,1762336373437,234.12192275,0.00020797,4]
[393218969,1762336665463,158.96,0.0002,7]
[393218970,1762336734473,-206.08894803,0.00015629,2]
[393218971,1762336734502,-173.23630488,0.00015886,2]
[393218972,1762336734530,-578.464318,0.00016039,2]
[393218973,1762336734559,-159.38424726,0.00016143,2]
[393218974,1762336734602,-371.34917974,0.00016372,2]
[393218975,1762336734763,-6776.73076437,0.00016471,2]
[393218976,1762336734787,-10000.01,0.00016471,2]
[393218977,1762336734910,-1831.95816797,0.00016471,2]
[393218978,1762336734933,-6336.09366406,0.00016471,2]
[393218979,1762336735041,-300.0,0.00016471,2]
[393218980,1762336735073,-500.0,0.00016471,2]
[393218981,1762336735104,-243.75407371,0.00016471,2]
[393218982,1762336735135,-500.0,0.00016471,2]
[393218983,1762336735165,-500.0,0.00016471,2]
[393218984,1762336735197,-500.0,0.00016471,2]
[393218985,1762336735226,-500.0,0.00016471,2]
[393218986,1762336735260,-500.0,0.00016471,2]
[393218987,1762336735289,-500.0,0.00016471,2]
[393218988,1762336735318,-500.0,0.00016471,2]
[393218989,1762336735346,-412.50185258,0.00016471,2]
[393218990,1762336735436,-87.49814742,0.00016471,2]
[393218991,1762336735464,-287.72532758,0.00016471,2]
[393218992,1762336735492,-500.0,0.00016471,2]
[393218993,1762336735519,-500.0,0.00016472,2]
[393218994,1762336735547,-500.0,0.00016472,2]
[393218995,1762336735575,-500.0,0.00016472,2]
[393218996,1762336735602,-500.0,0.00016472,2]
[393218997,1762336735631,-500.0,0.00016472,2]
[393218998,1762336735661,-500.0,0.00016472,2]
[393218999,1762336735690,-259.72723739,0.00016473,2]
[393219000,1762336735719,-501.61963227,0.00016473,2]
[393219001,1762336735748,-307.82784461,0.00016473,2]
[393219002,1762336735862,-500.63534299,0.00016473,2]
[393219003,1762336735890,-500.0,0.00016473,2]
[393219004,1762336735917,-502.63451928,0.00016473,2]
[393219005,1762336735945,-502.52305216,0.00016473,2]
[393219006,1762336735972,-501.32630293,0.00016473,2]
[393219007,1762336736000,-500.0,0.00016473,2]
[393219008,1762336736030,-500.0,0.00016473,2]
[393219009,1762336736058,-500.0,0.00016473,2]
[393219010,1762336736086,-502.73788384,0.00016473,2]
[393219011,1762336736678,-201.92578098,0.00016473,2]
[393219012,1762336736693,-980.2957976,0.00016473,2]
[393219013,1762336736706,-10000.01,0.00016473,2]
[393219014,1762336736719,-10000.01,0.00016473,2]
[393219015,1762336736739,-10000.01,0.00016473,2]
[393219016,1762336737364,-10000.01,0.00016473,2]
[393219017,1762336737529,-10000.01,0.00016473,2]
[393219018,1762336737658,-10000.01,0.00016473,2]
[393219019,1762336740536,-10000.01,0.00016473,2]
[393219020,1762336740773,-10000.01,0.00016473,2]
[393219021,1762336741051,-10000.01,0.00016473,2]
[393219022,1762336741080,-10000.01,0.00016473,2]
[393219023,1762336741184,-10000.01,0.00016473,2]
[393219024,1762336741346,-10000.01,0.00016473,2]
[393219025,1762336741488,-10000.01,0.00016473,2]
[393219026,1762336743434,-10000.01,0.00016473,2]
[393219027,1762336743542,-500.0,0.00016473,2]
[393219028,1762336743577,-9000.01,0.00016473,2]
[393219029,1762336743665,-10000.01,0.00016473,2]
[393219030,1762336746565,-500.0,0.00016473,2]
[393219031,1762336746598,-9000.01,0.00016473,2]
[393219032,1762336748625,-300.0,0.00016472,2]
[393219033,1762336748664,-9400.01,0.00016473,2]
[393219034,1762336748764,-10000.01,0.00016473,2]
[393219035,1762336748879,-10000.01,0.00016473,2]
[393219036,1762336748987,-10000.01,0.00016473,2]
[393219037,1762336749093,-10000.01,0.00016473,2]
[393219038,1762336749206,-10000.01,0.00016473,2]
[393219039,1762336752611,-10000.01,0.00016473,2]
[393219040,1762336752799,-10000.01,0.00016473,2]
[393219041,1762336752936,-10000.01,0.00016473,2]
[393219042,1762336755551,-10000.01,0.00016473,2]
[393219043,1762336755664,-10000.01,0.00016473,2]
[393219044,1762336755987,-10000.01,0.00016473,2]
[393219045,1762336756125,-10000.01,0.00016473,2]
[393219046,1762336756257,-10000.01,0.00016473,2]
[393219047,1762336756387,-10000.01,0.00016473,2]
[393219048,1762336756658,-10000.01,0.00016473,2]
[393219049,1762336758722,-10000.01,0.00016473,2]
[393219050,1762336758926,-10000.01,0.00016473,2]
[393219051,1762336759043,-10000.01,0.00016473,2]
[393219052,1762336761619,-10000.01,0.00016473,2]
[393219053,1762336761753,-10000.01,0.00016473,2]
[393219054,1762336761867,-10000.01,0.00016473,2]
[393219055,1762336761976,-10000.01,0.00016473,2]
[393219056,1762336762212,-10000.01,0.00016473,2]
[393219057,1762336762347,-10000.01,0.00016473,2]
[393219058,1762336762464,-10000.01,0.00016473,2]
[393219059,1762336919970,200.0,0.00037531,30]
[393219060,1762336948850,200.0,0.00037531,30]
[393219317,1762337183503,200.0,0.00037528,30]
[393219322,1762337195082,826.337066,0.00013699,2]
[393219326,1762337305424,-181.34363045,0.00015135,2]
[393219327,1762337305447,-204.30628933,0.00015135,2]
[393219328,1762337313087,300.0,0.000137,2]
[393219440,1762337440769,-121.78582695,0.00015135,2]
[393219441,1762337440779,-176.93519047,0.00016152,2]
[393219442,1762337440789,-587.5250364,0.00016372,2]
[393219443,1762337440800,-1200.0,0.00016372,2]
[393219444,1762337440810,-500.0,0.00016373,2]
[393219445,1762337440819,-500.0,0.00016373,2]
[393219446,1762337440829,-37057.27468031,0.00016373,2]
[393219606,1762337481184,200.0,0.00037528,30]
[393219609,1762337526090,208.6912654,0.00020996,4]
[393219620,1762337574100,270.66286832,0.00020894,4]
[393219621,1762337594603,10000.0,0.00032877,120]
[393219622,1762337620408,-287.80511253,0.00015379,2]
[393219623,1762337623114,-235.73576301,0.00015379,2]
[393219624,1762337624646,-156.56208986,0.00015379,2]
[393219625,1762337626707,-300.0,0.00015379,2]
[393219626,1762337629050,-344.81635984,0.00015379,2]
[393219627,1762337630607,-312.01246415,0.00015379,2]
[393219628,1762337632834,-362.53684632,0.00015379,2]
[393219629,1762337634378,-155.93364418,0.00015379,2]
[393219630,1762337650372,-153.57690717,0.00015379,2]
[393219631,1762337652616,-246.44365917,0.00015379,2]
[393219632,1762337654702,-190.13755335,0.00015379,2]
[393219636,1762337781823,200.0,0.00037529,30]
[393219637,1762337922426,1414.0,0.000215,4]
[393219638,1762337935446,-162.78797914,0.00015216,2]
[393219639,1762337938869,-283.00114507,0.00015216,2]
[393219640,1762337941681,-190.36688303,0.00015216,2]
[393219711,1762338082319,200.0,0.00037529,30]
[393219788,1762338191043,-85.62506376,0.00015216,2]
[393219789,1762338191069,-170.74956027,0.00015298,2]
[393219790,1762338191626,251.77726789,0.00037529,30]
[393219802,1762338428078,-12.28361339,0.00015298,2]
[393219803,1762338428100,-53.41488552,0.00015379,2]
[393219804,1762338428122,-300.0,0.00015989,2]
[393219805,1762338428149,-180.79593667,0.0001599,2]
[393219806,1762338430830,21983.55,0.00037542,30]
[393219815,1762338473426,216.59524075,0.00020933,4]
[393219816,1762338482356,300.0,0.00015989,2]
[393219817,1762338484538,4488.84404236,0.00021,5]
[393219825,1762338542706,300.0,0.00015989,2]
[393219826,1762338543004,9400.01,0.00015397,2]
[393219827,1762338545076,-3871.25557029,0.00015397,2]
[393219828,1762338546986,-79.16813461,0.00015397,2]
[393219829,1762338550618,5000.0,0.0001583,2]
[393219884,1762338631725,-912.404044,0.0001583,2]
[393219887,1762338631736,-641.42527691,0.0001583,2]
[393219889,1762338631747,-3573.52868839,0.0001583,2]
[393219891,1762338631756,-12736.42882793,0.0001599,2]
[393219913,1762338637554,-2012.70208524,0.0001599,2]
[393219914,1762338637565,-750.0,0.0001599,2]
[393219930,1762338639938,-3e-08,0.0001599,2]
[393220269,1762338776642,-300.0,0.00015272,2]
[393220270,1762338779374,620.0,0.00037543,60]
[393220273,1762338804217,500.0,0.00037543,60]
[393220274,1762338804459,500.0,0.00037543,60]
[393220275,1762338804690,500.0,0.00037543,60]
[393220276,1762338804916,500.0,0.00037543,60]
[393220277,1762338805175,500.0,0.00037543,60]
[393220278,1762338805402,259.28081772,0.00037543,60]
[393220279,1762338830577,664.63503844,0.00037542,30]
[393220283,1762338971708,333.56177111,0.00037542,60]
[393220301,1762339066238,1000.0,0.00037542,60]
[393220302,1762339066463,1000.0,0.00037542,60]
[393220303,1762339066702,1000.0,0.00037542,60]
[393220304,1762339066940,1000.0,0.00037542,60]
[393220305,1762339067181,1005.416494,0.00037542,60]
[393220306,1762339143685,1008.0,0.000215,4]
[393220307,1762339173097,500.78723874,0.00037544,60]
[393220308,1762339180475,-146.7415071,0.00015272,2]
[393220309,1762339180497,-37.21035987,0.00015452,2]
[393220316,1762339238114,310.15710637,0.00037544,60]
[393220323,1762339288605,184.36816782,0.00037544,60]
[393220354,1762339570366,-205.95822941,0.00015226,2]
[393220355,1762339571946,-245.24751468,0.00015226,2]
[393220356,1762339672090,288.84177057,0.00020339,4]
[393220357,1762339751093,-56.59508721,0.00015226,2]
[393220358,1762339751113,-331.32419186,0.00015649,2]
[393220359,1762339751131,-378.65621927,0.00015649,2]
[393220360,1762339751150,-591.05869227,0.00015649,2]
[393220361,1762339751168,-112.36580939,0.00015721,2]
[393220362,1762339769223,219.83171605,0.0002,5]
[393220422,1762339837713,-163.80441297,0.00015649,2]
[393220423,1762339837723,-176.3809868,0.00015685,2]
[393220424,1762339837732,-494.77436338,0.0001599,2]
[393220425,1762339837742,-300.0,0.00016,2]
[393220426,1762339837751,-1060.60683559,0.00016173,2]
[393220427,1762339837765,-975.67453733,0.00016173,2]
[393220428,1762339837819,-726.42071235,0.00016173,2]
[393220429,1762339837829,-300.0,0.00016264,2]
[393220430,1762339837838,-287.0,0.00016264,2]
[393220431,1762339837847,-1151.0,0.00016264,2]
[393220432,1762339837857,-1058.0,0.00016265,2]
[393220433,1762339837866,-300.0,0.00016265,2]
[393220434,1762339837876,-300.0,0.00016265,2]
[393220435,1762339837885,-300.0,0.00016265,2]
[393220436,1762339837894,-159.384,0.0001627,2]
[393220437,1762339837903,-290.94008842,0.00016272,2]
[393220438,1762339837913,-500.0,0.00016272,2]
[393220439,1762339837923,-500.0,0.00016272,2]
[393220440,1762339837932,-500.0,0.00016272,2]
[393220441,1762339837941,-500.0,0.00016272,2]
[393220442,1762339837950,-500.0,0.00016272,2]
[393220443,1762339837960,-500.0,0.00016272,2]
[393220444,1762339837969,-500.0,0.00016272,2]
[393220445,1762339837979,-492.85243591,0.00016272,2]
[393220446,1762339837988,-500.0,0.00016273,2]
[393220447,1762339837997,-500.0,0.00016273,2]
[393220448,1762339838007,-507.50640393,0.00016273,2]
[393220449,1762339838017,-500.0,0.00016273,2]
[393220450,1762339838026,-500.0,0.00016273,2]
[393220451,1762339838037,-500.0,0.00016273,2]
[393220452,1762339838046,-587.13850019,0.00016273,2]
[393220453,1762339838056,-500.0,0.00016273,2]
[393220454,1762339838065,-500.0,0.00016273,2]
[393220455,1762339838075,-7158.29348132,0.00016273,2]
[393220458,1762339839937,-17382.9601165,0.00016265,2]
[393220774,1762339846445,-4269.8360399,0.00016265,2]
[393220775,1762339846458,-1836.98060179,0.00016265,2]
[393220776,1762339846468,-738.1996367,0.00016273,2]
[393220777,1762339874384,258.72075272,0.00020743,4]
[393220778,1762339882323,500.0,0.00037544,60]
[393220779,1762339888694,386.09,0.00037544,60]
[393220780,1762339891470,654.48,0.00016263,3]
[393220782,1762339922764,828.514737,0.00013699,2]
[393220783,1762339928627,500.0,0.00037544,60]
[393220784,1762339928853,500.0,0.00037544,60]
[393220785,1762339929084,500.0,0.00037544,60]
[393220786,1762339929332,500.0,0.00037544,60]
[393220787,1762339929568,500.0,0.00037544,60]
[393220788,1762339929891,500.0,0.00037544,60]
[393220789,1762339930143,500.0,0.00037544,60]
[393220790,1762339930371,500.0,0.00037544,60]
[393220791,1762339930595,500.0,0.00037544,60]
[393220792,1762339930821,500.0,0.00037544,60]
[393220793,1762339931075,500.0,0.00037544,60]
[393220794,1762339931308,500.0,0.00037544,60]
[393220795,1762339931718,500.0,0.00037544,60]
[393220796,1762339931846,432.880725,0.00037544,60]
[393220799,1762340158864,198.39861898,0.00037541,60]
[393220800,1762340171851,529.86346609,0.00037541,60]
[393220801,1762340179790,564.17925443,0.00037541,60]
[393220802,1762340181564,514.00707551,0.00037541,60]
[393220804,1762340321194,-156.13105961,0.00015182,2]
[393220805,1762340325979,-195.16294725,0.00015182,2]
[393220806,1762340328736,-173.61811596,0.00015182,2]
[393220807,1762340333162,-249.6578057,0.00015182,2]
[393220808,1762340337559,-271.03465328,0.00015182,2]
[393220809,1762340341353,-280.61190905,0.00015182,2]
[393220810,1762340343009,-366.84853083,0.00015182,2]
[393220811,1762340343386,-35.36204252,0.00015182,2]
[393220812,1762340358487,-455.75784568,0.00016084,2]
[393220813,1762340358516,-203.65806189,0.00016172,2]
[393220814,1762340358545,-276.98360399,0.00016172,2]
[393220815,1762340358573,-196.0,0.00016172,2]
[393220816,1762340358601,-172.85336707,0.00016172,2]
[393220817,1762340358806,-2389.50424274,0.00016173,2]
[393220818,1762340358829,-10000.01,0.00016173,2]
[393220819,1762340358930,-10000.01,0.00016173,2]
[393220820,1762340359048,-10000.01,0.00016173,2]
[393220821,1762340359164,-10000.01,0.00016173,2]
[393220822,1762340359285,-10000.01,0.00016173,2]
[393220823,1762340359383,-10000.01,0.00016173,2]
[393220824,1762340359488,-10000.01,0.00016173,2]
[393220825,1762340359600,-10000.01,0.00016173,2]
[393220826,1762340364424,-10000.01,0.00016173,2]
[393220827,1762340364541,-10000.01,0.00016173,2]
[393220828,1762340367534,-10000.01,0.00016173,2]
[393220829,1762340367735,-10000.01,0.00016173,2]
[393220830,1762340367863,-10000.01,0.00016173,2]
[393220831,1762340367999,-10000.01,0.00016173,2]
[393220832,1762340368099,-10000.01,0.00016173,2]
[393220833,1762340368230,-10000.01,0.00016173,2]
[393220834,1762340368349,-10000.01,0.00016173,2]
[393220835,1762340368475,-10000.01,0.00016173,2]
[393220836,1762340370468,-10000.01,0.00016173,2]
[393220837,1762340370605,-10000.01,0.00016173,2]
[393220838,1762340373631,-10000.01,0.00016173,2]
[393220839,1762340373906,-10000.01,0.00016173,2]
[393220840,1762340374019,-10000.01,0.00016173,2]
[393220841,1762340374149,-10000.01,0.00016173,2]
[393220842,1762340374276,-10000.01,0.00016173,2]
[393220843,1762340374389,-10000.01,0.00016173,2]
[393220844,1762340374499,-10000.01,0.00016173,2]
[393220845,1762340374656,-10000.01,0.00016173,2]
[393220846,1762340376519,-10000.01,0.00016173,2]
[393220847,1762340376650,-10000.01,0.00016173,2]
[393220848,1762340379653,-10000.01,0.00016173,2]
[393220849,1762340379858,-10000.01,0.00016173,2]
[393220850,1762340379969,-10000.01,0.00016173,2]
[393220851,1762340380112,-10000.01,0.00016173,2]
[393220852,1762340380234,-10000.01,0.00016173,2]
[393220853,1762340380350,-10000.01,0.00016173,2]
[393220854,1762340380517,-10000.01,0.00016173,2]
[393220855,1762340380664,-10000.01,0.00016173,2]
[393220856,1762340382589,-10000.01,0.00016173,2]
[393220857,1762340391948,-10000.01,0.00016173,2]
[393220858,1762340391961,-10000.01,0.00016173,2]
[393220859,1762340391984,-10000.01,0.00016173,2]
[393220860,1762340392129,-10000.01,0.00016173,2]
[393220861,1762340392275,-10000.01,0.00016173,2]
[393220862,1762340392416,-10000.01,0.00016173,2]
[393220863,1762340392545,-10000.01,0.00016173,2]
[393220864,1762340392683,-10000.01,0.00016173,2]
[393220865,1762340392794,-10000.01,0.00016173,2]
[393220866,1762340427620,154.24725914,0.00037542,60]
[393220867,1762340472403,500.0,0.00037542,60]
[393220868,1762340472635,500.0,0.00037542,60]
[393220869,1762340472872,500.0,0.00037542,60]
[393220870,1762340473113,500.0,0.00037542,60]
[393220871,1762340473378,500.0,0.00037542,60]
[393220872,1762340473619,501.4345707,0.00037542,60]
[393220873,1762340595445,500.0,0.00037542,60]
[393220883,1762340785506,-223.97224377,0.00015146,2]
[393220884,1762340788517,-136.91829123,0.00015146,2]
[393220885,1762340788540,-109.55899476,0.00015397,2]
[393220887,1762340846147,-63.30203106,0.00015397,2]
[393220888,1762340846174,-179.67585278,0.00015649,2]
[393220889,1762340846197,-206.08894803,0.00016072,2]
[393220890,1762340846222,-445.20676242,0.00016073,2]
[393220891,1762340846247,-300.0,0.00016169,2]
[393220892,1762340846270,-175.82496447,0.0001617,2]
[393220893,1762340861050,-195.20654203,0.00015246,2]
[393220894,1762340863211,-104.79345797,0.00015246,2]
[393220895,1762340863236,-116.14414073,0.000154,2]
[393220896,1762340876227,-183.85585927,0.000154,2]
[393220897,1762340876251,-50.45855624,0.000154,2]
[393220898,1762340877563,-229.30808311,0.000154,2]
[393220905,1762340905888,-479.25259849,0.00015246,2]
[393220906,1762340907465,-140.98076216,0.00015246,2]
[393220907,1762340907486,-16.38662015,0.000154,2]
[393220908,1762340908948,-3.8467405,0.000154,2]
[393220909,1762340908971,-232.06030433,0.000154,2]
[393220915,1762340910349,-67.93969567,0.000154,2]
[393220916,1762340910372,-164.50706367,0.000154,2]
[393220921,1762340935355,-214.56281871,0.00015459,2]
[393220924,1762341025485,-171.07191889,0.00015458,2]
[393220925,1762341025508,-128.92808111,0.00015458,2]
[393220956,1762341031989,-178.69344344,0.00015304,2]
[393220958,1762341031998,-178.69344344,0.00015458,2]
[393220960,1762341032008,-31.60386371,0.00015459,2]
[393220962,1762341032017,-309.22,0.00015824,2]
[393220964,1762341032026,-154.62,0.00015984,2]
[393220966,1762341032035,-154.6,0.00015984,2]
[393220968,1762341032044,-153.99625041,0.00016,2]
[393220970,1762341032053,-300.0,0.00016168,2]
[393220972,1762341032062,-48538.685651,0.00016168,2]
[393221097,1762341040347,-3e-08,0.00016167,2]
[393221132,1762341040685,-243.75407368,0.00016167,2]
[393221134,1762341040694,-500.0,0.00016167,2]
[393221136,1762341040704,-500.0,0.00016167,2]
[393221138,1762341040714,-500.0,0.00016167,2]
[393221140,1762341040723,-500.0,0.00016167,2]
[393221142,1762341040732,-500.0,0.00016167,2]
[393221144,1762341040741,-500.0,0.00016167,2]
[393221146,1762341040750,-258.95279482,0.00016167,2]
[393221148,1762341040759,-500.0,0.00016167,2]
[393221150,1762341040768,-500.0,0.00016167,2]
[393221152,1762341040777,-500.0,0.00016167,2]
[393221154,1762341040786,-1461.314349,0.00016168,2]
[393221156,1762341040795,-6535.0824325,0.00016173,2]
[393221354,1762341043211,-3238.73587812,0.00016006,2]
[393221462,1762341256362,500.0,0.0003754,60]
[393221463,1762341256651,500.0,0.0003754,60]
[393221464,1762341256827,500.0,0.0003754,60]
[393221465,1762341257071,500.0,0.0003754,60]
[393221466,1762341257316,500.0,0.0003754,60]
[393221467,1762341257551,500.0,0.0003754,60]
[393221468,1762341257808,500.0,0.0003754,60]
[393221469,1762341258071,500.0,0.0003754,60]
[393221470,1762341258308,500.0,0.0003754,60]
[393221471,1762341258568,500.0,0.0003754,60]
[393221472,1762341258813,500.0,0.0003754,60]
[393221473,1762341259068,500.0,0.0003754,60]
[393221474,1762341259354,500.0,0.0003754,60]
[393221475,1762341259592,500.0,0.0003754,60]
[393221476,1762341259838,500.0,0.0003754,60]
[393221477,1762341260080,565.5,0.0003754,120]
[393221549,1762341471431,192.48688147,0.00020401,4]
[393221628,1762341625370,-233.99635603,0.00015297,2]
[393221629,1762341628107,-262.42991811,0.00015297,2]
[393221630,1762341629638,-268.171401,0.00015297,2]
[393221631,1762341629660,-31.828599,0.00015452,2]
[393221632,1762341633520,-266.51173075,0.00015452,2]
[393221636,1762341636198,-58.47191865,0.00015452,2]
[393221637,1762341636220,-265.58892815,0.00015452,2]
[393221638,1762341637726,-142.19649859,0.00015452,2]
[393221639,1762341637746,-62.3899089,0.00015452,2]
[393221640,1762341639900,-318.00980162,0.00015452,2]
[393221641,1762341643182,-152.7107901,0.00015297,2]
[393221642,1762341644899,-191.08448377,0.00015297,2]
[393221643,1762341647560,-265.28032247,0.00015297,2]
[393221644,1762341650440,-169.64846681,0.00015144,2]
[393221645,1762341650461,-151.346687,0.00015297,2]
[393221646,1762341653410,-18.30177981,0.00015297,2]
[393221647,1762341653432,-204.45455385,0.00015452,2]
[393221648,1762341655013,-51.67330019,0.00015452,2]
[393221649,1762341655035,-117.76219028,0.00015453,2]
[393221723,1762341792845,-245.51880397,0.00015022,2]
[393221724,1762341795843,-317.31265916,0.00014872,2]
[393221725,1762341797373,-382.04304448,0.00014872,2]
[393221726,1762341799656,-156.23987852,0.00014872,2]
[393221727,1762341801890,-248.57594024,0.00014872,2]
[393221728,1762341804814,-169.56028027,0.00014872,2]
[393221730,1762341821005,-78.87310963,0.00014872,2]
[393221731,1762341821026,-97.65909688,0.00015022,2]
[393221732,1762341822460,-229.12950711,0.00015022,2]
[393221734,1762341829050,-374.8536954,0.00015022,2]
[393221735,1762341830659,-345.38455942,0.00015022,2]
[393221746,1762341832196,-60.05924952,0.00015022,2]
[393221747,1762341832219,-115.94069704,0.00015174,2]
[393221748,1762341833771,-245.27588994,0.00015174,2]
[393221764,1762341850446,-294.18324461,0.00015022,2]
[393221786,1762341854801,-155.41481188,0.00015022,2]
[393221787,1762341856868,-253.44630284,0.00014872,2]
[393221805,1762341860897,-194.4027745,0.00014872,2]
[393221806,1762341862517,-236.50359093,0.00014872,2]
[393221807,1762341865162,-12.85241244,0.00014872,2]
[393221808,1762341865184,-297.3587906,0.00015022,2]
[393221809,1762341868341,-178.68986607,0.00015022,2]
[393221810,1762341869934,-65.74161216,0.00015022,2]
[393221811,1762341869957,-163.79741733,0.00015174,2]
[393221812,1762341871510,-300.0,0.00015174,2]
[393221813,1762341874114,-296.90163129,0.00015174,2]
[393221814,1762341881028,-230.6892767,0.00015022,2]
[393221815,1762341881050,-5.04648628,0.00015174,2]
[393221817,1762341895558,-225.64279042,0.00015022,2]
[393221818,1762341895579,-36.7654977,0.00015174,2]
[393221823,1762341914673,500.0,0.00037544,60]
[393221824,1762341914902,500.0,0.00037544,60]
[393221825,1762341915140,200.021768,0.00037544,60]
[393221826,1762341925349,-188.87729272,0.00014872,2]
[393221827,1762341925373,-272.12689936,0.00014876,2]
[393221828,1762341930347,-184.41014922,0.00014876,2]
[393221829,1762341932949,-27.41481832,0.00014876,2]
[393221830,1762341932971,-188.87729272,0.00015022,2]
[393221831,1762341932992,-25.88525954,0.00015174,2]
[393221832,1762341936166,-151.0,0.00015174,2]
[393221834,1762341941033,-11.99203318,0.00015174,2]
[393221835,1762341941056,-174.33803174,0.000152,2]
[393221837,1762341956503,-125.66196826,0.000152,2]
[393221838,1762341956535,-46.36968836,0.000152,2]
[393221839,1762341970368,-425.66196826,0.00015048,2]
[393221840,1762341970390,-5.18762001,0.000152,2]
[393221841,1762341973090,-188.62213729,0.000152,2]
[393221842,1762341975792,-260.07470142,0.00015048,2]
[393221843,1762341977964,-99.74585292,0.00015048,2]
[393221844,1762341977988,-59.82055434,0.000152,2]
[393221845,1762341978010,-130.34497842,0.000152,2]